[Event "POL Youth-ch U20 Girls 2020"]
[Site "Pokrzywna"]
[Date "2020.12.05"]
[Round "8.11"]
[White "Furtak, Joanna"]
[Black "Czernikowska, Laura"]
[Result "1/2-1/2"]
[ECO "B43"]
[WhiteElo "1837"]
[BlackElo "1508"]
[Annotator "NA"]
[PlyCount "65"]
[EventDate "2020.11.29"]
[EventType "swiss"]
[EventCountry "POL"]
[SourceTitle "playchess.com"]
[Source "ChessBase"]
[SourceQuality "1"]
[TimeControl "40/5400+30:1800+30"]

1. e4 {[%emt 0:00:00]} c5 {[%emt 0:00:00]} 2. Nc3 {[%emt 0:00:00]} e6 {[%emt 0:00:00]} 3. Nf3 {[%emt 0:00:00]} a6 {[%emt 0:01:13]} 4. d4 {[%emt 0:00:00]} cxd4 {[%emt 0:00:08]} 5. Nxd4 {[%emt 0:00:00]} b5 {[%emt 0:00:25]} 6. g3 {[%emt 0:00:44]} Bb7 {[%emt 0:00:45]} 7. Bg2 {[%emt 0:00:18]} Nf6 {[%emt 0:00:48]} 8. O-O {[%emt 0:01:52]} d6 {[%emt 0:01:37]} 9. Re1 {[%emt 0:01:18]} Qc7 {[%emt 0:02:54]} ({Better is} 9... Qd7 $14) 10. a4 $16 {[%emt 0:03:42]} bxa4 {[%emt 0:05:03]} 11. Be3 {[%emt 0:12:14]} Nbd7 {[%emt 0:04:23]} 12. Qe2 {[%emt 0:05:44]} e5 {[%emt 0:01:55]} 13. Nf5 {[%emt 0:02:58]} g6 {[%emt 0:01:23]} 14. Nh4 {[%emt 0:01:41]} a3 {[%emt 0:00:19]} 15. Nd5 {[%emt 0:08:59]} Nxd5 {[%emt 0:02:44]} 16. exd5 {[%emt 0:00:05]} axb2 {[%emt 0:00:17]} 17. Ra2 {[%emt 0:01:16]} Bg7 {[%emt 0:06:57]} 18. Rb1 {[%emt 0:06:27]} O-O {[%emt 0:02:51]} 19. Raxb2 {[%emt 0:00:47]} Rfb8 {[%emt 0:02:03]} 20. Qd2 {[%emt 0:07:39]} Bc8 {[%emt 0:08:03]} 21. Rb3 {[%emt 0:02:06]} Rxb3 {[%emt 0:09:30]} 22. cxb3 {[%emt 0:00:04]} Nf6 {[%emt 0:10:50]} 23. Rc1 {[%emt 0:02:55]} Qd7 {[%emt 0:02:34]} 24. Qa5 {[%emt 0:02:14]} Ne8 {[%emt 0:03:42]} 25. Bf1 {[%emt 0:01:22]} Bb7 {[%emt 0:02:48]} 26. b4 {[%emt 0:02:04]} Bf6 {[%emt 0:05:20]} 27. Ng2 {[%emt 0:02:06]} Bd8 {[%emt 0:02:20]} 28. Bb6 {[%emt 0:00:58]} Bxb6 {[%emt 0:00:34]} 29. Qxb6 {[%emt 0:00:03]} Bxd5 {[%emt 0:00:25]} 30. Bxa6 {[%emt 0:00:58]} Qa7 {[%emt 0:01:01]} 31. Qxa7 {[%emt 0:01:51]} Rxa7 {[%emt 0:00:05]} 32. b5 {[%emt 0:00:37]} Bb7 {[%emt 0:01:19]} 33. Ne3 {[%emt 0:03:29]} 1/2-1/2

[Event "POL Youth-ch U20 Girls 2020"]
[Site "Pokrzywna"]
[Date "2020.12.05"]
[Round "8.12"]
[White "Mirowska, Oliwia"]
[Black "Bukala, Weronika"]
[Result "1-0"]
[ECO "A05"]
[WhiteElo "1820"]
[BlackElo "1677"]
[Annotator "NA RC"]
[PlyCount "105"]
[EventDate "2020.11.29"]
[EventType "swiss"]
[EventCountry "POL"]
[SourceTitle "playchess.com"]
[Source "ChessBase"]
[SourceQuality "1"]
[TimeControl "40/5400+30:1800+30"]

1. Nf3 {[%emt 0:01:51]} Nf6 {[%emt 0:00:00]} 2. g3 {[%emt 0:00:13]} g6 {[%emt 0:00:00]} 3. Bg2 {[%emt 0:00:07]} Bg7 {[%emt 0:00:01]} 4. d3 {[%emt 0:00:07]} d5 {[%emt 0:01:00]} 5. O-O {[%emt 0:00:08]} O-O {[%emt 0:00:48]} 6. Nbd2 {[%emt 0:01:09]} Nc6 {[%emt 0:01:45]} 7. e4 {[%emt 0:00:55]} d4 {[%emt 0:01:32]} 8. Re1 {[%emt 0:01:02]} e5 {[%emt 0:01:08]} 9. Nf1 {[%emt 0:00:58]} Qd6 {[%emt 0:05:35]} 10. h3 $15 {[%emt 0:00:32]} Be6 {[%emt 0:01:53]} 11. Bd2 {[%emt 0:00:17]} a5 {[%emt 0:07:03]} 12. Nh4 {[%emt 0:02:14]} Ra6 {[%emt 0:07:59]} 13. Qc1 {[%emt 0:04:15]} Qc5 {[%emt 0:05:53]} 14. a3 {[%emt 0:00:55]} Nd7 {[%emt 0:09:03]} 15. g4 {[%emt 0:01:23]} Nb6 {[%emt 0:03:06]} 16. Ng3 {[%emt 0:00:42]} Na4 {[%emt 0:01:19]} 17. b3 {[%emt 0:00:11]} Nc3 {[%emt 0:00:22]} 18. Bh6 {[%emt 0:00:27]} Ne7 {[%emt 0:07:39]} 19. Bxg7 {[%emt 0:01:33]} Kxg7 {[%emt 0:00:02]} 20. Nhf5+ {[%emt 0:00:48]} Bxf5 {[%emt 0:04:06]} 21. gxf5 {[%emt 0:01:59]} Rc6 {[%emt 0:03:44]} 22. Qg5 {[%emt 0:02:10]} Ng8 {[%emt 0:01:51]} 23. Kh2 {[%emt 0:09:24]} Nf6 {[%emt 0:08:10]} 24. Bf3 {[%emt 0:04:42]} Nb5 {[%emt 0:01:09]} 25. Rac1 {[%emt 0:00:13]} Nxa3 {[%emt 0:01:28]} 26. Rg1 {[%emt 0:00:28]} h6 {[%emt 0:08:07]} 27. Qh4 {[%emt 0:02:27]} Kh7 {[%emt 0:02:22]} 28. Ne2 {[%emt 0:04:58]} Nxc2 {[%emt 0:03:51]} 29. Rg2 {[%emt 0:12:54]} Qb4 {[%emt 0:08:07]} 30. Rxc2 {[%emt 0:12:17]} Rxc2 {[%emt 0:00:13]} 31. Qxf6 {[%emt 0:00:11]} Qd6 {[%emt 0:00:37]} 32. Qh4 {[%emt 0:00:33]} Rb2 {[%emt 0:00:25]} 33. Ng3 {[%emt 0:01:16]} Rxb3 {[%emt 0:02:10]} 34. f6 {[%emt 0:01:46]} g5 {[%emt 0:00:57]} 35. Qg4 {[%emt 0:02:08]} Qxf6 {[%emt 0:00:05]} 36. Nh5 {[%emt 0:00:39]} Qe6 {[%emt 0:00:09]} 37. Qg3 {[%emt 0:02:25]} Rxd3 {[%emt 0:01:25]} 38. Rg1 {[%emt 0:00:16]} a4 {[%emt 0:00:17]} 39. Qg2 {[%emt 0:00:11]} a3 {[%emt 0:01:14]} 40. Bg4 {[%emt 0:00:00]} Qb6 {[%emt 0:00:00]} 41. h4 {[%emt 0:01:06]} Rg8 {[%emt 0:02:15]} 42. Qf1 {[%emt 0:00:40]} Rb3 {[%emt 0:02:45]} 43. Qc4 {[%emt 0:00:25]} Rf8 {[%emt 0:06:04]} 44. hxg5 {[%emt 0:02:19]} hxg5 {[%emt 0:03:03]} 45. Bf5+ {[%emt 0:01:17]} Kh6 {[%emt 0:02:33]} 46. Nf6 {[%emt 0:00:48]} a2 {[%emt 0:09:55]} 47. Nd7 {[%emt 0:04:20]} Qb4 {[%emt 0:03:02]} 48. Kg2 {[%emt 0:02:16]} Rb1 {[%emt 0:04:25]} 49. Rh1+ {[%emt 0:02:47]} Rxh1 {[%emt 0:00:17]} 50. Qxb4 {[%emt 0:00:06]} Rh8 {[%emt 0:00:54]} 51. Qe7 {[%emt 0:01:06]} Kg7 {[%emt 0:02:20]} 52. Qf6+ {[%emt 0:00:06]} Kg8 {[%emt 0:00:08]} 53. Qxg5# {[%emt 0:00:06]} 1-0

[Event "POL Youth-ch U20 Girls 2020"]
[Site "Pokrzywna"]
[Date "2020.12.06"]
[Round "9.7"]
[White "Budkiewicz, Magdalena"]
[Black "Kulpa, Zuzanna"]
[Result "1-0"]
[ECO "C47"]
[WhiteElo "1672"]
[BlackElo "1806"]
[Annotator "NA RC"]
[PlyCount "63"]
[EventDate "2020.11.29"]
[EventType "swiss"]
[EventCountry "POL"]
[SourceTitle "playchess.com"]
[Source "ChessBase"]
[SourceQuality "1"]
[TimeControl "40/5400+30:1800+30"]

1. e4 {[%emt 0:00:00]} e5 {[%emt 0:00:00]} 2. Nf3 {[%emt 0:00:00]} Nc6 {[%emt 0:00:00]} 3. Nc3 {[%emt 0:00:00]} Nf6 {[%emt 0:00:00]} 4. d4 {[%emt 0:00:08]} exd4 {[%emt 0:00:03]} 5. Nxd4 {[%emt 0:00:15]} Bb4 {[%emt 0:03:51]} 6. Nxc6 {[%emt 0:00:22]} bxc6 {[%emt 0:00:10]} 7. Bd3 {[%emt 0:00:26]} d5 {[%emt 0:00:56]} 8. exd5 {[%emt 0:00:10]} cxd5 {[%emt 0:00:05]} 9. O-O {[%emt 0:00:13]} O-O {[%emt 0:00:06]} 10. Qf3 {[%emt 0:04:01] C47: Scotch Four Knights and Four Knights with 4 g3.} h6 {[%emt 0:07:33]} 11. h3 {[%emt 0:03:05]} c6 {[%emt 0:01:43]} 12. Bf4 {[%emt 0:02:11]} Bd6 {[%emt 0:01:10]} 13. Ne2 {[%emt 0:02:53]} Re8 {[%emt 0:05:11]} 14. Rad1 {[%emt 0:04:38]} Be6 {[%emt 0:05:37]} 15. Rfe1 {[%emt 0:11:57]} Bxf4 {[%emt 0:05:07]} 16. Nxf4 {[%emt 0:00:19]} Qb6 {[%emt 0:00:08]} 17. b3 {[%emt 0:03:56] [#]} c5 $146 {[%emt 0:06:57]} ({Predecessor:} 17... Bd7 18. a4 Rad8 19. Nh5 Nxh5 20. Qxh5 Qb4 21. Re3 Rxe3 22. fxe3 Qe7 {1-0 (53) Che,Q (2020)-Nguyen,H (1670) Ho Chi Minh City 2016}) 18. Nh5 {[%emt 0:11:06]} Nxh5 {[%emt 0:03:44]} 19. Qxh5 {[%emt 0:00:14]} Rad8 {[%emt 0:01:05]} 20. Bf5 {[%emt 0:09:50]} g6 {[%emt 0:14:10]} 21. Bxg6 {[%emt 0:01:22]} fxg6 {[%emt 0:00:06]} 22. Qxg6+ {[%emt 0:00:24]} Kf8 {[%emt 0:00:08]} 23. Qxh6+ {[%emt 0:04:43]} Ke7 {[%emt 0:00:05]} 24. Re5 {[%emt 0:11:33]} Rd6 {[%emt 0:05:24]} 25. Rde1 {[%emt 0:02:01]} Kd7 {[%emt 0:03:30]} 26. Qg6 {[%emt 0:01:26]} Rf8 {[%emt 0:08:00]} 27. R1e2 {[%emt 0:07:42]} c4 {[%emt 0:04:26]} 28. h4 {[%emt 0:01:42]} cxb3 {[%emt 0:02:27]} 29. axb3 $14 {[%emt 0:00:24]} Ke7 {[%emt 0:08:47]} 30. h5 {[%emt 0:02:08]} Rg8 {[%emt 0:06:59]} 31. Qh7+ {[%emt 0:00:20]} Kf8 {[%emt 0:00:06]} 32. Rf5+ {[%emt 0:00:08]} 1-0

[Event "POL Youth-ch U20 Girls 2020"]
[Site "Pokrzywna"]
[Date "2020.12.06"]
[Round "9.11"]
[White "Czernikowska, Laura"]
[Black "Kroliczek, Gabriela"]
[Result "0-1"]
[ECO "D05"]
[WhiteElo "1508"]
[BlackElo "1911"]
[Annotator "RC"]
[PlyCount "90"]
[EventDate "2020.11.29"]
[EventType "swiss"]
[EventCountry "POL"]
[SourceTitle "playchess.com"]
[Source "ChessBase"]
[SourceQuality "1"]
[TimeControl "40/5400+30:1800+30"]

1. d4 {[%emt 0:00:00]} Nf6 {[%emt 0:00:00]} 2. Nf3 {[%emt 0:00:00]} e6 {[%emt 0:00:00]} 3. e3 {[%emt 0:00:00]} d5 {[%emt 0:00:00]} 4. Bd3 {[%emt 0:00:01]} c5 {[%emt 0:00:00]} 5. b3 {[%emt 0:00:35]} Nc6 {[%emt 0:00:03]} 6. Bb2 {[%emt 0:00:28]} b6 {[%emt 0:00:14]} 7. Nbd2 {[%emt 0:00:35]} Bb7 {[%emt 0:00:24]} 8. O-O {[%emt 0:00:47]} Be7 {[%emt 0:01:44]} 9. Ne5 {[%emt 0:03:05]} Nxe5 {[%emt 0:18:18]} 10. dxe5 {[%emt 0:00:37]} Nd7 {[%emt 0:00:03]} 11. f4 {[%emt 0:01:14]} g6 {[%emt 0:03:20]} 12. Qg4 {[%emt 0:09:38]} Qc7 {[%emt 0:03:52]} 13. e4 {[%emt 0:10:06]} d4 {[%emt 0:12:45]} 14. c3 {[%emt 0:02:55]} dxc3 {[%emt 0:00:04]} 15. Bxc3 {[%emt 0:00:04]} O-O-O {[%emt 0:01:39]} 16. Rfd1 {[%emt 0:10:36]} g5 {[%emt 0:11:45]} 17. Nc4 {[%emt 0:04:06]} h5 {[%emt 0:02:06]} 18. Qf3 {[%emt 0:02:16]} g4 {[%emt 0:02:05]} 19. Qf2 {[%emt 0:01:09]} Rhg8 {[%emt 0:01:15]} 20. a4 {[%emt 0:05:29]} h4 {[%emt 0:06:39]} 21. g3 {[%emt 0:03:47]} Qc6 {[%emt 0:06:35]} 22. Qe2 {[%emt 0:03:34]} f5 {[%emt 0:05:31]} 23. Nd2 {[%emt 0:05:21]} c4 {[%emt 0:03:41]} 24. bxc4 {[%emt 0:04:14]} Nc5 {[%emt 0:00:13]} 25. Bc2 {[%emt 0:00:22]} Nxe4 {[%emt 0:05:26]} 26. Nxe4 {[%emt 0:00:44]} fxe4 {[%emt 0:01:07]} 27. Qe3 {[%emt 0:00:47]} Bc5 {[%emt 0:00:59]} 28. Bd4 {[%emt 0:00:13]} Rxd4 {[%emt 0:00:20]} 29. Rxd4 {[%emt 0:00:07]} Bxd4 {[%emt 0:00:22]} 30. Qxd4 {[%emt 0:00:17]} e3 {[%emt 0:00:09]} 31. Be4 {[%emt 0:02:13]} Qxe4 {[%emt 0:00:10]} 32. Qxe4 {[%emt 0:00:03]} Bxe4 {[%emt 0:00:04]} 33. Re1 {[%emt 0:00:17]} hxg3 {[%emt 0:01:20]} 34. hxg3 {[%emt 0:00:20]} Bc6 {[%emt 0:01:51]} 35. Rxe3 {[%emt 0:00:15]} Rh8 {[%emt 0:00:53]} 36. a5 {[%emt 0:00:57]} Rh1+ {[%emt 0:01:40]} 37. Kf2 {[%emt 0:00:06]} Rh2+ {[%emt 0:00:07]} 38. Kf1 {[%emt 0:00:49]} bxa5 {[%emt 0:02:17]} 39. Ra3 {[%emt 0:00:08]} a4 {[%emt 0:00:03]} 40. Ke1 {[%emt 0:00:00]} Rc2 {[%emt 0:00:00]} 41. Kd1 {[%emt 0:00:57]} Rxc4 {[%emt 0:00:07]} 42. Kd2 {[%emt 0:00:11]} Kc7 {[%emt 0:01:11]} 43. Kd3 {[%emt 0:00:19]} Rb4 {[%emt 0:00:12]} 44. Kc2 {[%emt 0:00:34]} Rb3 {[%emt 0:00:53]} 45. Rxb3 {[%emt 0:00:19]} axb3+ {[%emt 0:00:03]} 0-1

[Event "POL Youth-ch U20 Girls 2020"]
[Site "Pokrzywna"]
[Date "2020.12.06"]
[Round "9.12"]
[White "Pawicka, Magdalena"]
[Black "Furtak, Joanna"]
[Result "0-1"]
[ECO "B47"]
[WhiteElo "1762"]
[BlackElo "1837"]
[Annotator "NA RC"]
[PlyCount "66"]
[EventDate "2020.11.29"]
[EventType "swiss"]
[EventCountry "POL"]
[SourceTitle "playchess.com"]
[Source "ChessBase"]
[SourceQuality "1"]
[TimeControl "40/5400+30:1800+30"]

1. e4 {[%emt 0:00:00]} c5 {[%emt 0:00:00]} 2. Nf3 {[%emt 0:00:00]} Nc6 {[%emt 0:00:00]} 3. d4 {[%emt 0:00:00]} cxd4 {[%emt 0:00:00]} 4. Nxd4 {[%emt 0:00:00]} Qc7 {[%emt 0:00:00]} 5. Nc3 {[%emt 0:00:22]} e6 {[%emt 0:00:00]} 6. f4 {[%emt 0:00:17]} a6 {[%emt 0:00:00]} 7. Nxc6 {[%emt 0:00:20]} Qxc6 {[%emt 0:00:07]} 8. Bd3 {[%emt 0:00:25]} b5 {[%emt 0:00:34]} 9. Qe2 {[%emt 0:00:43]} Bb7 {[%emt 0:01:46]} 10. Bd2 {[%emt 0:12:46]} Rc8 {[%emt 0:02:09]} 11. O-O {[%emt 0:06:08]} Bc5+ {[%emt 0:04:12]} 12. Kh1 {[%emt 0:02:51]} Ne7 {[%emt 0:01:48]} 13. e5 {[%emt 0:06:27]} O-O {[%emt 0:05:58]} 14. Ne4 {[%emt 0:03:51]} d5 {[%emt 0:02:06]} 15. Nf6+ {[%emt 0:11:01]} gxf6 {[%emt 0:05:07]} 16. Bxh7+ {[%emt 0:01:43]} Kxh7 {[%emt 0:10:53]} 17. Qh5+ {[%emt 0:00:36]} Kg8 {[%emt 0:04:48]} 18. Rf3 {[%emt 0:06:17]} Rfd8 {[%emt 0:04:23]} 19. exf6 {[%emt 0:02:07]} Kf8 {[%emt 0:03:10]} 20. Qh8+ {[%emt 0:08:28]} Ng8 {[%emt 0:00:08]} 21. f5 {[%emt 0:02:48]} Rc7 {[%emt 0:07:35]} 22. Bh6+ {[%emt 0:03:14]} Ke8 {[%emt 0:00:04]} 23. Qxg8+ {[%emt 0:00:13]} Kd7 {[%emt 0:00:04]} 24. Qxf7+ {[%emt 0:00:39]} Kc8 {[%emt 0:00:09]} 25. Qxe6+ {[%emt 0:00:30]} Kb8 {[%emt 0:01:23]} 26. Re1 {[%emt 0:10:01]} d4 {[%emt 0:04:58]} 27. Rg3 {[%emt 0:03:46]} Bd6 {[%emt 0:05:26]} 28. Rg8 {[%emt 0:01:48]} Ka7 {[%emt 0:01:55]} 29. f7 {[%emt 0:01:07]} Re7 {[%emt 0:05:44]} 30. Re2 {[%emt 0:09:02]} Rxe6 {[%emt 0:07:35]} 31. fxe6 {[%emt 0:00:21]} Qc8 {[%emt 0:05:52]} 32. Rxd8 {[%emt 0:01:16]} Qxd8 $19 {[%emt 0:00:04]} 33. h3 {[%emt 0:04:13]} Qf6 {[%emt 0:02:39]} 0-1